bitfinex/quotes_ETHUSD_20241215
["timestamp","ask_amount","ask_price","bid_price","bid_amount"]
[1734244053662,2.57057,3890.2,3889.6,0.18604373]
[1734244053972,2.57057,3890.2,3889.6,0.29064143]
[1734244055892,2.57062,3890.1,3889.6,0.29064143]
[1734244060001,2.57048,3890.4,3889.7,0.8141]
[1734244060207,2.57048,3890.4,3889.8,0.10473136]
[1734244061013,2.57048,3890.4,3889.8,0.6198526]
[1734244061200,2.57048,3890.4,3889.8,0.10473136]
[1734244063107,2.57027,3890.7,3889.8,0.10473136]
[1734244063312,0.55,3890.6,3889.9,0.8141]
[1734244063839,0.55,3890.6,3890.0,0.10470002]
[1734244068007,3.12031,3890.6,3890.0,0.10470002]
[1734244069235,0.55,3890.6,3890.0,0.10470002]
[1734244069441,0.55,3890.3,3890.0,0.10470002]
[1734244076628,1.62324039,3890.5,3890.0,0.10470002]
[1734244076951,0.55,3890.2,3890.0,0.10470002]
[1734244084360,3.12057,3890.2,3890.0,0.10470002]
[1734244084672,3.12057,3890.2,3889.6,1.85827678]
[1734244084887,3.12057,3890.2,3890.1,0.10460461]
[1734244085037,3.96604155,3890.2,3889.6,1.85827678]
[1734244085388,3.12057,3890.2,3889.7,2.33408071]
[1734244085547,3.12057,3890.2,3889.8,0.89176097]
[1734244085741,3.12057,3890.2,3889.7,0.10467828]
[1734244085942,3.12057,3890.2,3889.9,0.10464144]
[1734244086138,3.12057,3890.2,3889.8,0.10465986]
[1734244086443,3.12057,3890.2,3889.9,0.10464144]
[1734244086643,3.12057,3890.2,3889.6,1.85827678]
[1734244086844,3.12057,3890.2,3889.7,2.33411584]
[1734244087176,3.12057,3890.2,3889.8,2.22943014]
[1734244087375,3.12057,3890.2,3889.7,0.10467828]
[1734244087542,3.12057,3890.2,3889.9,0.10470194]
[1734244087741,3.12057,3890.2,3889.8,0.10472036]
[1734244087944,3.12057,3890.2,3890.0,0.10468353]
[1734244088142,3.12057,3890.2,3889.9,0.10470194]
[1734244088359,3.12057,3890.2,3889.6,1.85827678]
[1734244088577,3.12057,3890.2,3889.7,2.22953455]
[1734244088791,3.12057,3890.2,3889.8,0.89181382]
[1734244088941,3.12057,3890.2,3889.8,1.33772111]
[1734244089147,3.12057,3890.2,3889.9,0.10470194]
[1734244089578,3.12057,3890.2,3889.6,2.50550098]
[1734244089882,3.12057,3890.2,3889.7,2.22960466]
[1734244090186,0.55,3890.2,3889.8,2.22960466]
[1734244090342,0.55,3890.0,3889.7,0.10473878]
[1734244090547,0.55,3890.0,3889.9,0.10474598]
[1734244090745,0.55,3890.0,3889.8,0.10476439]
[1734244090945,0.55,3890.0,3889.9,0.99662472]
[1734244091144,0.55,3890.0,3889.9,0.10474598]
[1734244091549,0.55,3890.0,3889.6,1.85827678]
[1734244091884,0.55,3890.0,3889.7,2.2297918]
[1734244092059,0.55,3890.0,3889.8,2.2297918]
[1734244092262,0.55,3890.0,3889.9,0.9966628]
[1734244092984,1.62324039,3890.2,3889.9,0.10474598]
[1734244093196,0.55,3890.0,3889.9,0.10474598]
[1734244093356,0.55,3890.0,3889.5,1.07597678]
[1734244093562,0.55,3890.0,3889.9,0.10472397]
[1734244093789,0.55,3890.1,3889.5,1.07597678]
[1734244094077,0.55,3889.9,3889.6,2.22980837]
[1734244094285,0.55,3890.1,3889.7,2.22980837]
[1734244094469,0.55,3889.9,3889.6,0.10477923]
[1734244094651,0.55,3890.0,3889.8,0.10474239]
[1734244094853,0.55,3890.0,3889.5,1.07597678]
[1734244095151,0.55,3890.0,3889.6,2.33456653]
[1734244095381,0.55,3890.0,3889.7,2.2297873]
[1734244095553,0.55,3890.0,3889.6,0.10477923]
[1734244095755,0.55,3890.0,3889.8,0.10474239]
[1734244095953,0.55,3890.0,3889.7,0.10476081]
[1734244096257,3.12069,3890.0,3889.8,0.10474239]
[1734244096585,3.12069,3890.0,3889.4,1.07597678]
[1734244096786,3.12069,3890.0,3889.5,3.30569253]
[1734244096986,3.12069,3890.0,3889.6,2.22971575]
[1734244097193,3.12069,3890.0,3889.7,0.8918863]
[1734244097352,3.12069,3890.0,3889.7,0.10476081]
[1734244097789,3.12069,3890.0,3889.4,1.07597678]
[1734244097985,0.55,3890.0,3889.8,0.10474239]
[1734244098202,0.55,3890.1,3889.5,1.07597678]
[1734244098406,0.55,3890.1,3889.9,0.10472397]
[1734244098609,0.55,3890.1,3889.5,1.07597678]
[1734244098903,0.55,3890.1,3889.6,2.2295705]
[1734244099072,0.55,3890.1,3889.7,2.2295705]
[1734244099402,0.55,3890.1,3889.8,0.8918282]
[1734244099552,0.55,3890.1,3889.8,0.10474239]
[1734244099950,0.55,3890.1,3889.5,1.07597678]
[1734244100154,0.55,3890.1,3889.9,0.10472397]
[1734244100362,0.55,3890.1,3889.6,2.22955958]
[1734244100363,0.55,3890.1,3889.5,1.07597678]
[1734244100567,0.55,3890.1,3890.0,0.10470556]
[1734244100787,3.96617129,3890.1,3889.5,1.07597678]
[1734244100991,3.96617129,3890.1,3890.0,0.10470556]
[1734244100992,3.12062,3890.1,3890.0,0.10470556]
[1734244101167,3.96617217,3890.1,3889.5,1.07597678]
[1734244101378,3.12062,3890.1,3890.0,0.10470556]
[1734244101578,5.23440965,3890.1,3889.5,1.07597678]
[1734244101895,3.12062,3890.1,3889.6,2.22955782]
[1734244102201,0.55,3889.9,3889.7,0.89182313]
[1734244102402,0.55,3889.9,3889.6,0.10477923]
[1734244102572,0.55,3890.0,3889.8,0.10481389]
[1734244102767,0.55,3890.0,3889.7,0.10483231]
[1734244102996,0.55,3890.0,3889.5,1.07597678]
[1734244102997,0.55,3890.0,3889.9,0.10479547]
[1734244103180,0.55,3890.0,3889.8,0.10481389]
[1734244103384,0.55,3890.0,3889.9,0.10479547]
[1734244103582,1.20798562,3890.0,3889.9,0.10479547]
[1734244103780,0.55,3889.8,3889.3,1.07597678]
[1734244103992,1.59633734,3889.8,3889.4,2.2295724]
[1734244104204,1.59633734,3889.8,3889.5,0.89182896]
[1734244104376,1.59633734,3889.8,3889.2,4.07597678]
[1734244104578,1.59633734,3889.8,3889.3,2.22944155]
[1734244104809,1.59633734,3889.8,3889.4,2.22944155]
[1734244104977,1.59633734,3889.8,3889.5,0.89177662]
[1734244105179,1.59633734,3889.8,3889.2,1.07597678]
[1734244105379,1.59633734,3889.8,3889.3,2.22946476]
[1734244105598,1.59633734,3889.8,3889.4,2.22946476]
[1734244105775,1.59633734,3889.8,3889.2,1.07597678]
[1734244105977,1.59633734,3889.8,3889.3,2.22928763]
[1734244106179,1.59633734,3889.8,3889.4,0.89171505]
[1734244106506,1.59633734,3889.8,3889.2,1.07597678]
[1734244106711,1.59633734,3889.8,3889.3,2.22911043]
[1734244106927,1.59633734,3889.8,3889.4,0.89164417]
[1734244107229,1.59633734,3889.8,3889.2,1.07597678]
[1734244107391,1.59633734,3889.8,3889.3,2.2289881]
[1734244107580,1.59633734,3889.8,3889.4,0.89159524]
[1734244107776,1.59633734,3889.8,3889.2,1.07597678]
[1734244107777,0.55,3889.8,3889.2,1.07597678]
[1734244108027,0.55,3890.0,3889.3,3.61460157]
[1734244108310,0.55,3890.1,3889.4,3.04560737]
[1734244108510,0.55,3890.1,3889.5,2.22900737]
[1734244108698,0.55,3890.1,3889.6,0.89160295]
[1734244108903,0.55,3890.1,3889.4,0.8166]
[1734244109079,0.55,3890.1,3889.5,2.2288852]
[1734244109281,0.55,3890.1,3889.6,0.89155408]
[1734244109480,0.55,3890.1,3889.4,1.89257678]
[1734244109683,0.55,3890.1,3889.5,2.22891355]
[1734244110014,3.12064,3890.1,3889.6,0.89156542]
[1734244110205,3.12064,3890.1,3889.4,0.8166]
[1734244110404,0.84534678,3890.0,3889.5,2.2289256]
[1734244110619,0.55,3889.9,3889.6,0.89157024]
[1734244110916,0.55,3889.9,3889.4,0.8166]
[1734244111104,0.55,3890.0,3889.5,2.22905137]
[1734244111318,0.55,3890.0,3889.4,0.8166]
[1734244111521,0.55,3890.0,3889.5,2.2290862]
[1734244111697,0.55,3890.0,3889.6,0.89163438]
[1734244111898,2.57071,3890.0,3889.4,0.8166]
[1734244112095,0.55,3889.9,3889.5,2.22909435]
[1734244112297,0.55,3889.9,3889.6,0.89163774]
[1734244112487,0.55,3889.9,3889.4,0.8166]
[1734244112687,0.55,3889.9,3889.5,2.22923907]
[1734244112899,0.55,3889.9,3889.6,0.89169563]
[1734244113094,0.55,3889.9,3889.4,0.8166]
[1734244113319,0.55,3889.9,3889.5,2.22923825]
[1734244113484,0.55,3889.9,3889.6,0.8916953]
[1734244113689,0.55,3889.9,3889.4,0.8166]
[1734244113906,0.55,3889.9,3889.5,2.22936233]
[1734244114114,0.55,3889.9,3889.6,0.89174493]
[1734244114309,0.55,3889.9,3889.4,0.8166]
[1734244114510,0.55,3889.9,3889.7,0.10537143]
[1734244114709,0.55,3889.9,3889.4,0.8166]
[1734244114986,0.55,3889.9,3889.5,2.22948925]
[1734244115223,0.55,3889.9,3889.6,0.99718555]
[1734244115419,0.55,3889.9,3889.6,0.10538985]
[1734244115593,0.55,3889.9,3889.4,0.8166]
[1734244115793,0.55,3889.9,3889.5,2.22960555]
[1734244116023,0.55,3889.9,3889.6,0.89184222]
[1734244116210,0.55,3889.9,3889.5,0.10540827]
[1734244116389,0.55,3889.9,3889.7,0.10537143]
[1734244116592,0.55,3889.9,3889.6,0.10538985]
[1734244116791,0.55,3889.9,3889.8,0.10535301]
[1734244117106,0.55,3889.9,3889.4,0.8166]
[1734244117295,0.55,3889.9,3889.5,2.22959338]
[1734244117501,0.55,3889.9,3889.6,0.89183735]
[1734244117718,0.55,3889.9,3889.5,0.10540827]
[1734244118022,2.57078,3889.9,3889.7,0.10537143]
[1734244118325,0.55,3889.8,3889.4,0.8166]
[1734244118524,0.55,3889.8,3889.5,2.22960278]
[1734244118821,0.55,3889.8,3889.6,0.89184667]
[1734244119121,0.55,3889.8,3889.4,0.8166]
[1734244119326,0.55,3889.8,3889.5,2.22961677]
[1734244119494,0.55,3889.8,3889.6,0.89184671]
[1734244119693,0.55,3889.8,3889.4,0.8166]
[1734244119893,1.3749,3889.8,3889.5,2.2296189]
[1734244120094,1.3749,3889.8,3889.6,0.89184756]
[1734244120326,1.3749,3889.8,3889.3,1.07597678]
[1734244120488,1.3749,3889.8,3889.4,2.22966208]
[1734244120687,1.3749,3889.8,3889.5,2.22966208]
[1734244120917,1.3749,3889.8,3889.6,0.89186483]
[1734244121222,1.3749,3889.8,3889.3,1.07597678]
[1734244121409,1.3749,3889.8,3889.4,2.22967075]
[1734244121617,1.3749,3889.8,3889.5,2.22967075]
[1734244121817,1.3749,3889.8,3889.6,0.8918683]
[1734244122014,1.3749,3889.8,3889.3,1.07597678]
[1734244122233,1.3749,3889.8,3889.4,2.22967402]
[1734244122403,1.3749,3889.8,3889.5,2.22967402]
[1734244122598,1.3749,3889.8,3889.6,0.89186961]
[1734244122798,1.3749,3889.8,3889.3,1.07597678]
[1734244123006,1.3749,3889.8,3889.4,2.22971823]
[1734244123307,1.3749,3889.8,3889.5,2.22971823]
[1734244123504,1.3749,3889.8,3889.6,0.89188729]
[1734244123712,1.3749,3889.8,3889.4,1.07597678]
[1734244124031,1.3749,3889.8,3889.5,2.22975353]
[1734244124190,1.3749,3889.8,3889.6,0.89190141]
[1734244124399,1.3749,3889.8,3889.4,1.07597678]
[1734244124722,1.3749,3889.8,3889.5,2.22982227]
[1734244124903,1.3749,3889.8,3889.6,0.89192891]
[1734244125234,1.3749,3889.8,3889.3,1.07597678]
[1734244125433,1.3749,3889.8,3889.4,2.22982838]
[1734244125620,1.3749,3889.8,3889.5,2.22982838]
[1734244125825,1.3749,3889.8,3889.6,0.89193135]
[1734244126014,1.3749,3889.8,3889.4,1.07597678]
[1734244126211,1.3749,3889.8,3889.5,2.22983685]
[1734244126418,1.3749,3889.8,3889.6,0.89193474]
[1734244126730,1.3749,3889.8,3889.4,1.07597678]
[1734244126934,1.3749,3889.8,3889.5,2.229824]
[1734244127098,1.3749,3889.8,3889.6,0.8919296]
[1734244127299,1.3749,3889.8,3889.4,1.07597678]
[1734244127535,1.3749,3889.8,3889.5,2.22987155]
[1734244127830,1.3749,3889.8,3889.6,0.89194862]
[1734244128034,1.3749,3889.8,3889.4,1.07597678]
[1734244128233,1.3749,3889.8,3889.5,2.2298932]
[1734244128433,1.3749,3889.8,3889.6,0.89195728]
[1734244128631,1.3749,3889.8,3889.4,1.07597678]
[1734244128931,1.3749,3889.8,3889.5,2.22996275]
[1734244129114,1.3749,3889.8,3889.6,0.8919851]
[1734244129313,1.3749,3889.8,3889.4,1.07597678]
[1734244129500,1.3749,3889.8,3889.7,0.10528339]
[1734244129934,1.3749,3889.8,3889.4,1.07597678]
[1734244130139,1.3749,3889.8,3889.7,0.10190988]
[1734244130306,1.3749,3889.8,3889.4,1.07597678]
[1734244130501,1.3749,3889.8,3889.7,0.10190988]
[1734244130706,1.3749,3889.8,3889.4,1.07597678]
[1734244130911,1.3749,3889.8,3889.7,0.10190988]
[1734244131314,1.3749,3889.8,3889.4,1.07597678]
[1734244131520,1.3749,3889.8,3889.7,0.10190988]
[1734244131721,1.3749,3889.8,3889.4,1.07597678]
[1734244131923,1.3749,3889.8,3889.7,0.10190988]
[1734244132140,1.3749,3889.8,3889.4,1.07597678]
[1734244132411,1.3749,3889.8,3889.7,0.10190988]
[1734244132632,1.3749,3889.8,3889.4,1.07597678]
[1734244132633,3.94574,3889.8,3889.4,1.07597678]
[1734244132833,3.94574,3889.8,3889.7,0.10190988]
[1734244133037,3.94574,3889.8,3889.4,1.07597678]
[1734244133338,3.94574,3889.8,3889.5,2.23020773]
[1734244133544,3.94574,3889.8,3889.6,0.89208309]
[1734244133741,3.94574,3889.8,3889.6,0.1019283]
[1734244134036,3.94574,3889.8,3889.4,1.07597678]
[1734244134239,3.94574,3889.8,3889.7,0.10190988]
[1734244134444,3.94574,3889.8,3889.4,1.07597678]
[1734244134628,3.94574,3889.8,3889.7,0.10190988]
[1734244134837,3.94574,3889.8,3889.4,1.07597678]
[1734244135007,3.94574,3889.8,3889.7,0.10190988]
[1734244135213,3.94574,3889.8,3889.4,1.07597678]
[1734244135435,3.94574,3889.8,3889.7,0.10190988]
[1734244135632,3.94574,3889.8,3889.4,1.07597678]
[1734244135831,3.94574,3889.8,3889.7,0.10190988]
[1734244136343,3.94574,3889.8,3889.4,1.07597678]
[1734244136646,3.94574,3889.8,3889.7,0.10190988]
[1734244136947,3.94574,3889.8,3889.4,1.07597678]
[1734244137150,3.94574,3889.8,3889.7,0.10190988]
[1734244137451,3.94574,3889.8,3889.4,1.07597678]
[1734244137636,3.94574,3889.8,3889.7,0.10190988]
[1734244138147,3.94574,3889.8,3889.4,1.07597678]
[1734244138346,3.94574,3889.8,3889.7,0.10190988]
[1734244138546,4.79166933,3889.8,3889.4,1.07597678]
[1734244138743,3.94574,3889.8,3889.7,0.10190988]
[1734244138946,4.79166854,3889.8,3889.7,0.89229312]
[1734244139241,4.79166854,3889.8,3889.7,0.994203]
[1734244139844,4.79166854,3889.8,3889.7,0.10190988]
[1734244140246,4.79166854,3889.8,3889.4,1.07597678]
[1734244140445,3.94574,3889.8,3889.7,0.10190988]
[1734244140616,3.94574,3889.8,3889.7,0.8923039]
[1734244140946,0.55,3889.9,3889.7,0.9941945]
[1734244141134,0.55,3889.9,3889.7,0.10190988]
[1734244141335,0.55,3889.9,3889.5,1.89287678]
[1734244141537,3.12076,3889.9,3889.8,0.10189146]
[1734244141739,3.96676718,3889.9,3889.5,1.89287678]
[1734244142055,3.12076,3889.9,3889.8,0.10189146]
[1734244142247,3.96677446,3889.9,3889.5,1.89287678]
[1734244142451,3.12076,3889.9,3889.8,0.10189146]
[1734244142751,3.96677811,3889.9,3889.8,0.10189146]
[1734244142946,3.12076,3889.9,3889.8,0.89226879]
[1734244143327,3.12076,3889.9,3889.8,0.99416025]
[1734244143653,3.96676966,3889.9,3889.8,0.10189146]
[1734244143955,3.96676966,3889.9,3889.5,1.07597678]
[1734244144248,3.12076,3889.9,3889.8,0.10189313]
[1734244144446,3.96677881,3889.9,3889.5,1.07597678]
[1734244144645,3.12076,3889.9,3889.8,0.1019003]
[1734244144950,3.9667821,3889.9,3889.5,1.07597678]
[1734244145123,3.12076,3889.9,3889.6,2.23077971]
[1734244145327,3.12076,3889.9,3889.7,0.89231188]
[1734244145519,3.12076,3889.9,3889.7,0.10191872]
[1734244145719,3.12076,3889.9,3889.5,1.07597678]
[1734244145938,3.12076,3889.9,3889.6,2.33280833]
[1734244146126,3.12076,3889.9,3889.7,2.23087836]
[1734244146330,3.12076,3889.9,3889.7,0.10191155]
[1734244146635,3.12076,3889.9,3889.5,1.07597678]
[1734244146828,3.12076,3889.9,3889.8,0.10189313]
[1734244147147,3.96685636,3889.9,3889.8,0.10189313]
[1734244147349,3.96685636,3889.9,3889.8,0.89240641]
[1734244147661,3.9668763,3889.9,3889.8,0.99429956]
[1734244147955,5.23605054,3889.9,3889.8,0.10189313]
[1734244148158,3.9668763,3889.9,3889.5,1.07597678]
[1734244148315,3.12076,3889.9,3889.6,2.23105325]
[1734244148522,3.12076,3889.9,3889.7,2.23105325]
[1734244148842,3.12076,3889.9,3889.7,0.10191155]
[1734244149146,3.12076,3889.9,3889.5,1.07597678]
[1734244149349,3.12076,3889.9,3889.8,0.10189313]
[1734244149524,3.12076,3889.9,3889.5,1.07597678]
[1734244149525,5.23616607,3889.9,3889.5,1.07597678]
[1734244149726,3.12076,3889.9,3889.6,2.23115968]
[1734244149951,3.12076,3889.9,3889.7,2.23115968]
[1734244150143,2.57084,3889.8,3889.7,0.10191155]
[1734244150361,3.96697854,3889.8,3889.7,0.89246606]
[1734244150650,3.96697854,3889.8,3889.7,0.99437761]
[1734244151021,3.96697854,3889.8,3889.7,2.3330921]
[1734244151447,3.96697854,3889.8,3889.7,0.99437761]
[1734244153420,3.96697854,3889.8,3889.7,2.33325092]
[1734244153621,3.96697854,3889.8,3889.7,0.99437761]
[1734244153818,3.96709691,3889.8,3889.7,0.99449615]
[1734244154743,3.96709691,3889.8,3889.7,2.33336896]
[1734244158054,4.77729691,3889.8,3889.7,2.33336896]
[1734244158253,4.77729691,3889.8,3889.7,0.99449615]
[1734244158554,7.11987804,3889.8,3889.7,0.10191155]
[1734244158944,0.55,3889.7,3889.4,1.07597678]
[1734244159286,0.55,3889.7,3889.5,2.23149026]
[1734244159565,0.55,3889.7,3889.6,0.8925961]
[1734244159743,1.39616271,3889.7,3889.6,0.8925961]
[1734244159950,5.2362964,3889.7,3889.6,0.99467987]
[1734244160274,5.2362964,3889.7,3889.6,0.10208377]
[1734244160639,5.2362964,3889.7,3889.3,1.07597678]
[1734244160841,0.84616271,3889.6,3889.4,2.2312799]
[1734244161048,1.39616271,3889.6,3889.5,0.89251196]
[1734244162943,1.39594769,3889.6,3889.5,0.8923911]
[1734244163377,0.55,3889.6,3889.5,0.8923911]
[1734244166069,0.55,3889.7,3889.5,0.8923911]
[1734244166257,0.55,3889.7,3889.2,1.85927678]
[1734244166442,0.55,3889.7,3889.3,2.23059432]
[1734244166647,0.55,3889.7,3889.4,2.23059432]
[1734244166855,0.55,3889.7,3889.5,0.89223773]
[1734244167072,0.55,3889.7,3889.2,1.85927678]
[1734244167385,0.55,3889.7,3889.3,2.23057355]
[1734244167582,0.55,3889.7,3889.4,2.23057355]
[1734244167748,0.55,3889.7,3889.5,0.89220866]
[1734244167959,0.55,3889.7,3889.2,1.85927678]
[1734244168163,0.55,3889.7,3889.3,2.23051643]
[1734244168411,1.3148,3889.7,3889.4,2.23051643]
[1734244168564,1.3148,3889.7,3889.2,1.85927678]
[1734244168565,3.8857,3889.7,3889.2,1.85927678]
[1734244168759,3.8857,3889.7,3889.3,2.2305049]
[1734244168967,3.8857,3889.7,3889.4,2.2305049]
[1734244169272,3.8857,3889.7,3889.2,1.85927678]
[1734244169478,3.8857,3889.7,3889.3,2.23044588]
[1734244169659,3.8857,3889.7,3889.4,2.23044588]
[1734244169864,3.8857,3889.7,3889.2,1.85927678]
[1734244170109,3.8857,3889.7,3889.3,2.2304513]
[1734244170399,3.8857,3889.7,3889.4,2.2304513]
[1734244170612,3.8857,3889.7,3889.2,1.85927678]
[1734244170778,3.8857,3889.7,3889.3,2.2304033]
[1734244171106,3.8857,3889.7,3889.4,2.2304033]
[1734244171268,3.8857,3889.7,3889.5,0.89215151]
[1734244171596,3.8857,3889.7,3889.2,1.85927678]
[1734244171763,3.8857,3889.7,3889.3,2.23035126]
[1734244171965,3.8857,3889.7,3889.4,2.23035126]
[1734244172172,3.8857,3889.7,3889.5,0.89214073]
[1734244172369,3.8857,3889.7,3889.2,1.85927678]
[1734244172673,3.8857,3889.7,3889.3,2.23033136]
[1734244172894,3.8857,3889.7,3889.4,2.23033136]
[1734244173101,3.8857,3889.7,3889.2,1.85927678]
[1734244173304,3.8857,3889.7,3889.3,2.23032643]
[1734244173479,3.8857,3889.7,3889.4,2.23032643]
[1734244173683,3.8857,3889.7,3889.5,0.89211711]
[1734244173884,3.8857,3889.7,3889.2,1.85927678]
[1734244174066,3.8857,3889.7,3889.3,2.23029292]
[1734244174403,3.8857,3889.7,3889.2,1.85927678]
[1734244174404,3.8857,3889.7,3889.4,0.99446135]
[1734244174700,3.8857,3889.7,3889.4,0.10234418]
[1734244175091,3.8857,3889.7,3889.2,1.85927678]
[1734244175265,3.8857,3889.7,3889.5,0.10232576]
[1734244175499,3.8857,3889.7,3889.2,1.85927678]
[1734244175704,3.8857,3889.7,3889.3,2.23025592]
[1734244175922,3.8857,3889.7,3889.4,0.89210237]
[1734244176130,3.8857,3889.7,3889.3,0.1023626]
[1734244176443,3.8857,3889.7,3889.4,2.33260831]
[1734244176628,3.8857,3889.7,3889.5,0.89210565]
[1734244176827,3.8857,3889.7,3889.5,0.10232576]
[1734244177001,3.8857,3889.7,3889.2,1.85927678]
[1734244177207,3.8857,3889.7,3889.6,0.1023145]
[1734244177407,4.73144145,3889.7,3889.2,1.85927678]
[1734244177638,3.8857,3889.7,3889.6,0.10230734]
[1734244177841,4.73143017,3889.7,3889.2,1.85927678]
[1734244178016,3.8857,3889.7,3889.3,2.2302418]
[1734244178215,3.8857,3889.7,3889.4,2.2302418]
[1734244178415,3.8857,3889.7,3889.4,0.10234968]
[1734244178621,3.8857,3889.7,3889.2,1.85927678]
[1734244178805,3.8857,3889.7,3889.5,0.10233126]
[1734244179011,3.8857,3889.7,3889.2,1.85927678]
[1734244179242,3.8857,3889.7,3889.6,0.10231284]
[1734244179542,4.73143304,3889.7,3889.2,1.85927678]
[1734244179717,3.8857,3889.7,3889.6,0.10231284]
[1734244179925,4.73142614,3889.7,3889.2,1.85927678]
[1734244180216,3.8857,3889.7,3889.6,0.10231284]
[1734244180408,4.73142159,3889.7,3889.6,0.10231284]
[1734244180841,4.73142159,3889.7,3889.2,1.85927678]
[1734244181154,3.8857,3889.7,3889.6,0.10231284]
[1734244181318,4.7314217,3889.7,3889.2,1.85927678]
[1734244181523,3.8857,3889.7,3889.6,0.10231284]
[1734244181822,4.73141212,3889.7,3889.6,0.10231284]
[1734244182022,4.73141212,3889.7,3889.2,1.85927678]
[1734244182222,3.8857,3889.7,3889.6,0.10231284]
[1734244182454,4.73138976,3889.7,3889.2,1.85927678]
[1734244182616,3.8857,3889.7,3889.6,0.10231284]
[1734244182815,4.73138663,3889.7,3889.2,1.85927678]
[1734244183038,3.8857,3889.7,3889.6,0.10231284]
[1734244183252,3.8857,3889.7,3889.2,1.85927678]
[1734244183433,3.8857,3889.7,3889.6,0.10231284]
[1734244183617,3.8857,3889.7,3889.2,1.85927678]
[1734244183816,3.1209,3889.7,3889.6,0.10231284]
[1734244184128,3.1209,3889.7,3889.2,1.85927678]
[1734244184452,3.1209,3889.7,3889.3,2.23016613]
[1734244184658,3.1209,3889.7,3889.4,2.23016613]
[1734244184854,3.1209,3889.7,3889.5,0.89206645]
[1734244185020,3.1209,3889.7,3889.5,0.10233126]
[1734244185326,3.1209,3889.7,3889.6,0.10231284]
[1734244185515,3.1209,3889.7,3889.2,1.85927678]
[1734244185715,3.1209,3889.7,3889.3,2.23016945]
[1734244185920,3.1209,3889.7,3889.4,2.23016945]
[1734244186156,3.1209,3889.7,3889.5,0.9944062]
[1734244186383,3.1209,3889.7,3889.5,0.10233842]
[1734244186526,3.1209,3889.7,3889.2,1.85927678]
[1734244186731,3.1209,3889.7,3889.3,2.23018633]
[1734244187027,3.1209,3889.7,3889.4,2.23018633]
[1734244187247,3.1209,3889.7,3889.5,0.89207453]
[1734244187526,3.1209,3889.7,3889.5,0.10233842]
[1734244187760,3.1209,3889.7,3889.2,1.85927678]
[1734244187939,3.1209,3889.7,3889.3,2.3325968]
[1734244188126,3.1209,3889.7,3889.4,2.23022153]
[1734244188328,3.1209,3889.7,3889.5,0.99442703]
[1734244188660,3.1209,3889.7,3889.5,0.10233842]
[1734244188969,3.1209,3889.7,3889.6,0.10232]
[1734244189255,3.1209,3889.7,3889.2,1.85927678]
[1734244189434,3.1209,3889.7,3889.6,0.10232]
[1734244189634,3.1209,3889.7,3889.3,1.07597678]
[1734244189943,3.1209,3889.7,3889.4,2.23035552]
[1734244190143,3.1209,3889.7,3889.5,0.89214221]
[1734244190455,3.1209,3889.7,3889.5,0.10233842]
[1734244190683,3.1209,3889.7,3889.3,1.07597678]
[1734244190883,0.55,3889.7,3889.6,0.10232]
[1734244191063,1.07324039,3889.9,3889.3,1.07597678]
[1734244191064,0.55,3889.8,3889.3,1.07597678]
[1734244191258,0.55,3889.6,3889.4,2.23043076]
[1734244191458,0.55,3889.6,3889.5,0.8921723]
[1734244191653,0.55,3889.8,3889.5,0.8921723]
[1734244191855,0.55,3889.6,3889.2,1.85927678]
[1734244192053,0.55,3889.6,3889.3,2.23048848]
[1734244192275,0.55,3889.7,3889.4,0.89219539]
[1734244192474,0.55,3889.7,3889.2,1.85927678]
[1734244192682,0.55,3889.7,3889.3,2.23056682]
[1734244192986,0.55,3889.7,3889.4,2.23056682]
[1734244193284,0.7857,3889.6,3889.2,1.07597678]
[1734244193502,0.7857,3889.6,3889.3,2.23063451]
[1734244193710,0.7857,3889.6,3889.4,0.8922538]
[1734244194013,0.7857,3889.6,3889.2,1.07597678]
[1734244194330,0.7857,3889.6,3889.3,2.23063828]
[1734244194449,0.7857,3889.6,3889.2,1.07597678]
[1734244194450,0.55,3889.7,3889.4,0.89225531]
[1734244194649,0.84592715,3889.6,3889.2,1.07597678]
[1734244194850,0.84592715,3889.6,3889.3,2.23067618]
[1734244195092,0.84592715,3889.6,3889.4,0.89227047]
[1734244195285,0.84592715,3889.6,3889.3,1.33840314]
[1734244195589,0.84592715,3889.6,3889.2,1.07597678]
[1734244195590,0.52158129,3889.6,3889.4,2.23072769]
[1734244195746,0.52158129,3889.6,3889.2,1.07597678]
[1734244196050,0.52158129,3889.6,3889.3,2.23070313]
[1734244196251,0.52158129,3889.6,3889.4,2.23070313]
[1734244196451,0.52158129,3889.6,3889.5,0.89228125]
[1734244196746,1.36754591,3889.6,3889.2,1.07597678]
[1734244196952,0.52158129,3889.6,3889.3,2.23078128]
[1734244197250,0.52158129,3889.6,3889.4,2.23078128]
[1734244197447,0.52158129,3889.6,3889.2,1.07597678]
[1734244197653,0.52158129,3889.6,3889.3,2.23084875]
[1734244197899,0.52158129,3889.6,3889.4,2.23084875]
[1734244198187,0.52158129,3889.6,3889.2,1.07597678]
[1734244198392,0.52158129,3889.6,3889.3,2.23091042]
[1734244198565,0.52158129,3889.6,3889.2,1.07597678]
[1734244198566,0.52158129,3889.6,3889.4,2.23091042]
[1734244198766,0.52158129,3889.6,3889.5,0.89236397]
[1734244198953,1.91780118,3889.6,3889.5,0.89236397]
[1734244199155,1.91780118,3889.6,3889.2,1.07597678]
[1734244199363,1.07158129,3889.6,3889.3,2.23091133]
[1734244199661,1.07158129,3889.6,3889.4,2.23091133]
[1734244199865,1.07158129,3889.6,3889.2,1.07597678]
[1734244200076,1.07158129,3889.6,3889.3,2.23098935]
[1734244200275,1.07158129,3889.6,3889.4,2.23098935]
[1734244200475,1.07158129,3889.6,3889.5,0.89239574]
[1734244200662,1.91795915,3889.6,3889.2,1.07597678]
[1734244200867,1.07158129,3889.6,3889.3,2.2310925]
[1734244201189,1.07158129,3889.6,3889.4,2.23109197]
[1734244201391,1.07158129,3889.6,3889.2,1.07597678]
[1734244201581,1.07158129,3889.6,3889.3,2.23116947]
[1734244201888,1.07158129,3889.6,3889.4,2.23116947]
[1734244202117,1.07158129,3889.6,3889.5,0.89247195]
[1734244202257,1.91801016,3889.6,3889.5,0.89247195]
[1734244204994,1.39642887,3889.6,3889.5,2.23135801]
[1734244206056,0.84642887,3889.6,3889.5,4.46774883]